[Event "Reykjavik Open 2022"]
[Site "Reykjavik"]
[Date "2022.04.10"]
[Round "6.12"]
[White "Dishman, Stephen"]
[Black "Maze, Sebastien"]
[Result "0-1"]
[ECO "E67"]
[WhiteElo "2332"]
[BlackElo "2527"]
[Annotator "TA"]
[PlyCount "204"]
[EventDate "2022.04.06"]
[EventCountry "ISL"]
[SourceTitle "playchess.com"]
[Source "ChessBase"]
[SourceQuality "1"]
[TimeControl "40/5400+30:1800+30"]

{[%evp 53,204,34,41,12,64,-28,0,0,0,0,0,0,0,-18,0,-24,0,-9,0,0,0,0,0,0,0,-16,0,-10,-6,-8,-14,-22,0,0,0,0,0,-2,-8,-9,-7,-11,-8,-47,0,0,0,0,0,0,0,0,0,0,0,0,0,0,8,0,0,0,0,0,0,0,25,0,0,0,0,0,0,0,0,0,0,0,0,0,0,0,0,0,0,0,0,0,0,0,0,0,0,0,0,0,0,0,0,0,0,0,0,0,0,0,0,0,0,0,0,0,0,0,0,0,0,0,0,0,0,0,0,0,0,0,0,0,0,0,0,0,0,-61,-61,-40,0,0,0,-863,-848,-822,-823,-815,-555,-813,-752,-750,-687,-5057,-2010,-1560,-1260]} 1. Nf3 {[%emt 0:00:04]} Nf6 {[%emt 0:00:05]} 2. c4 {[%emt 0:00:16]} g6 {[%emt 0:00:08]} 3. b3 {[%emt 0:00:24]} Bg7 {[%emt 0:00:47]} 4. Bb2 {[%emt 0:00:08]} d6 {[%emt 0:00:06]} 5. d4 {[%emt 0:00:11]} O-O {[%emt 0:00:04]} 6. g3 {[%emt 0:00:19]} Nbd7 {[%emt 0:00:03]} 7. Bg2 {[%emt 0:00:19]} e5 {[%emt 0:00:06]} 8. Nc3 {[%emt 0:00:36]} Re8 {[%emt 0:12:14]} 9. O-O {[%emt 0:01:32]} e4 {[%emt 0:01:00]} 10. Ng5 {[%emt 0:00:49]} e3 {[%emt 0:00:16]} 11. fxe3 {[%emt 0:01:40]} h6 {[%emt 0:04:29]} 12. Nge4 {[%emt 0:01:57]} Ng4 {[%emt 0:02:03]} 13. Bc1 {[%emt 0:13:49]} f5 {[%emt 0:00:19]} 14. Nf2 {[%emt 0:01:14]} Nxe3 {[%emt 0:00:55]} 15. Bxe3 {[%emt 0:00:22]} Rxe3 {[%emt 0:00:02]} 16. Qd2 {[%emt 0:02:11]} Re8 {[%emt 0:00:02]} 17. e4 {[%emt 0:13:06]} fxe4 {[%emt 0:02:04]} 18. Nfxe4 {[%emt 0:03:16]} Nf8 {[%emt 0:00:05]} 19. Rae1 {[%emt 0:11:35]} Bf5 {[%emt 0:00:27]} 20. Kh1 {[%emt 0:11:51]} c6 {[%emt 0:04:52]} 21. d5 {[%emt 0:07:09]} c5 {[%emt 0:02:08]} 22. Qf4 {[%emt 0:05:06]} Re5 {[%emt 0:03:01]} 23. g4 {[%emt 0:03:21]} Bxe4 {[%emt 0:03:14]} 24. Qf7+ {[%emt 0:02:51]} Kh8 {[%emt 0:00:02]} 25. Nxe4 {[%emt 0:06:06]} Re7 {[%emt 0:02:02]} 26. Qf4 {[%emt 0:03:33]} Be5 {[%emt 0:01:18]} 27. Qf2 {[%emt 0:02:13]} (27. Qe3 $16) 27... Nh7 $14 {[%emt 0:11:14]} 28. h3 {[%emt 0:02:11]} Kg7 {[%emt 0:02:43]} (28... Qg8 $11) 29. Re2 {[%emt 0:03:27]} (29. b4 $1 $14 cxb4 30. c5) 29... a6 {[%emt 0:01:58]} 30. Qe1 {[%emt 0:00:31]} b6 {[%emt 0:04:43]} 31. Nf2 {[%emt 0:00:54]} Qd7 {[%emt 0:02:53]} 32. Nd3 {[%emt 0:00:13]} Rae8 {[%emt 0:00:01]} 33. Qd2 {[%emt 0:01:37]} Ng5 {[%emt 0:01:19]} 34. Rfe1 {[%emt 0:01:10]} Nf7 {[%emt 0:00:34]} 35. a4 {[%emt 0:00:18]} Kh7 {[%emt 0:00:57]} 36. Bf3 {[%emt 0:00:39]} Bg3 {[%emt 0:01:16]} 37. Rxe7 {[%emt 0:00:14]} Rxe7 {[%emt 0:00:01]} 38. Rxe7 {[%emt 0:00:49]} Qxe7 {[%emt 0:00:01]} 39. Qe2 {[%emt 0:00:59]} Be5 {[%emt 0:03:21]} 40. Qe3 {[%emt 0:00:00]} Qh4 {[%emt 0:00:00]} 41. Bg2 {[%emt 0:02:01]} Kg7 {[%emt 0:02:16]} 42. Bf1 {[%emt 0:04:27]} h5 {[%emt 0:03:00]} 43. gxh5 {[%emt 0:01:50]} Qxh5 {[%emt 0:00:31]} 44. Be2 {[%emt 0:02:09]} Qh4 {[%emt 0:00:22]} 45. Bg4 {[%emt 0:00:57]} Bd4 {[%emt 0:00:07]} 46. Qe1 $1 {[%emt 0:05:32]} Qg5 {[%emt 0:00:40]} 47. Qc1 {[%emt 0:01:03]} Be3 {[%emt 0:02:40]} 48. Qf1 {[%emt 0:00:56]} Qe7 {[%emt 0:03:00]} (48... Nh6 $15 {deserves consideration.}) 49. Be6 $11 {[%emt 0:03:30]} Ng5 {[%emt 0:00:58]} 50. Qe2 {[%emt 0:01:20]} Bd4 {[%emt 0:00:05]} 51. Qg4 {[%emt 0:06:31]} Qf6 {[%emt 0:13:16]} 52. Kg2 $1 {[%emt 0:00:52]} Be3 {[%emt 0:03:48]} 53. h4 $1 {[%emt 0:02:08]} Nh7 {[%emt 0:00:01]} 54. Qe4 {[%emt 0:01:08]} Bd2 {[%emt 0:01:03]} 55. Nf2 {[%emt 0:02:02]} Bf4 {[%emt 0:04:26]} 56. Nd3 {[%emt 0:00:12]} Bd2 {[%emt 0:09:30]} 57. Nf2 {[%emt 0:00:04]} Bc3 {[%emt 0:00:21]} 58. Nd3 {[%emt 0:01:33]} a5 {[%emt 0:04:50]} 59. Nf2 {[%emt 0:00:51]} Qe7 {[%emt 0:03:22]} 60. Nd3 {[%emt 0:01:04]} (60. Bg8 $5 {[%cal Re4e7]} Be5 61. Bxh7 Kxh7 62. Nh3 $11) 60... Nf6 {[%emt 0:00:33]} 61. Qf3 {[%emt 0:00:26]} Bd2 {[%emt 0:00:46]} 62. Nf2 {[%emt 0:00:19]} Be1 {[%emt 0:01:15]} 63. Kh3 {[%emt 0:00:32]} Nh5 {[%emt 0:03:19]} 64. Qe3 {[%emt 0:00:51]} Bxf2 {[%emt 0:02:00]} 65. Qxf2 {[%emt 0:00:02]} Qf6 {[%emt 0:00:06]} 66. Qxf6+ {[%emt 0:01:33]} Nxf6 {[%emt 0:00:04]} 67. Bg4 {[%emt 0:00:26]} Kh6 {[%emt 0:02:20]} 68. Bf3 {[%emt 0:00:15]} g5 {[%emt 0:00:10]} 69. hxg5+ {[%emt 0:00:06]} Kxg5 {[%emt 0:00:02]} 70. Kg3 {[%emt 0:00:16]} Kf5 {[%emt 0:00:02]} 71. Kf2 {[%emt 0:00:51]} Kf4 {[%emt 0:00:17]} 72. Ke2 {[%emt 0:00:23]} Nd7 {[%emt 0:00:18]} 73. Bh5 {[%emt 0:00:52]} Ke4 {[%emt 0:00:03]} 74. Kd2 {[%emt 0:00:06]} Kd4 {[%emt 0:00:27]} 75. Be2 {[%emt 0:00:53]} Ne5 {[%emt 0:00:19]} 76. Kc2 {[%emt 0:00:30]} Ke3 {[%emt 0:00:30]} 77. Bh5 {[%emt 0:00:18]} Nd3 {[%emt 0:00:46]} 78. Kc3 {[%emt 0:00:12]} Nf2 {[%emt 0:00:15]} 79. Bg6 {[%emt 0:00:19]} Nh3 {[%emt 0:00:33]} 80. Bh7 {[%emt 0:00:24]} Ke2 {[%emt 0:00:09]} 81. Kc2 {[%emt 0:00:21]} Nf2 {[%emt 0:01:25]} 82. Bg6 {[%emt 0:00:16]} Ke3 {[%emt 0:00:06]} 83. Kc3 {[%emt 0:00:30]} Nh3 {[%emt 0:00:21]} 84. Bh7 {[%emt 0:00:07]} Nf4 {[%emt 0:00:09]} 85. Kc2 $1 {[%emt 0:00:50]} Kd4 {[%emt 0:00:31]} 86. Bf5 {[%emt 0:00:31]} Ng2 {[%emt 0:00:07]} 87. Bg6 {[%emt 0:01:04]} Ne1+ {[%emt 0:00:22]} 88. Kd2 {[%emt 0:00:25]} Nf3+ {[%emt 0:00:16]} 89. Kc2 $1 {[%emt 0:00:09]} Ke3 {[%emt 0:00:34]} 90. Bh5 {[%emt 0:01:07]} Ne1+ {[%emt 0:01:53]} 91. Kc3 {[%emt 0:00:07]} Ng2 {[%emt 0:00:04]} 92. Bg6 {[%emt 0:00:36]} Nf4 {[%emt 0:00:03]} 93. Bh7 {[%emt 0:00:39]} (93. Bf7 $11) 93... Ne2+ $15 {[%emt 0:00:04]} 94. Kc2 {[%emt 0:00:08]} Nd4+ {[%emt 0:00:01]} 95. Kc3 {[%emt 0:00:19]} Ke2 {[%emt 0:00:02]} 96. Bg6 $2 {[%emt 0:01:35][%mdl 8192]} (96. Bc2 $11) 96... Kd1 $1 $19 {[%emt 0:00:03]} 97. Bh7 {[%emt 0:00:29]} Kc1 $1 {[%emt 0:00:05]} 98. Bd3 {[%emt 0:00:34]} Nf3 $1 {[%emt 0:00:11]} ({Worse is} 98... Kd1 99. Bh7 $17) 99. Bf5 {[%emt 0:00:42]} Nd2 $1 {[%emt 0:00:15]} 100. Bg6 {[%emt 0:00:43] [#]} Nb1+ $1 {[%emt 0:01:48]} 101. Kd3 {[%emt 0:00:12] [#]} Kb2 $1 {[%emt 0:00:33]} 102. Ke3 {[%emt 0:00:24]} Nc3 {[%emt 0:00:19]} 0-1

[Event "Reykjavik Open 2022"]
[Site "Reykjavik"]
[Date "2022.04.10"]
[Round "6.13"]
[White "Brunello, Marina"]
[Black "Peng, Li Min"]
[Result "0-1"]
[ECO "C41"]
[WhiteElo "2352"]
[BlackElo "2498"]
[Annotator "TA"]
[PlyCount "118"]
[EventDate "2022.04.06"]
[EventCountry "ISL"]
[SourceTitle "playchess.com"]
[Source "ChessBase"]
[SourceQuality "1"]
[TimeControl "40/5400+30:1800+30"]

{[%evp 16,118,45,21,20,8,31,25,33,35,29,24,30,0,0,-7,85,45,50,48,83,101,107,79,116,92,86,85,87,85,80,91,76,88,82,65,52,68,59,68,64,9,67,8,9,8,10,0,0,0,25,0,0,0,0,0,0,0,0,0,0,-47,-29,-47,-56,-39,-45,-51,-37,-51,-65,-57,-49,-157,-160,-290,-248,-234,-239,-720,-693,-1088,-1072,-1016,-1015,-993,-938,-5108,-4937,-4937,-1012,-1243,-1234,-1242,-1231,-5114,-5114,-5114,-5114,-5114,-5114,-5114,-5114,-5081,-4134]} 1. e4 {[%emt 0:00:03]} d6 {[%emt 0:26:12]} 2. d4 {[%emt 0:00:12]} Nf6 {[%emt 0:00:19]} 3. Nc3 {[%emt 0:00:08]} e5 {[%emt 0:00:05]} 4. Nf3 {[%emt 0:00:32]} Nbd7 {[%emt 0:00:03]} 5. Bc4 {[%emt 0:00:36]} Be7 {[%emt 0:00:02]} 6. O-O {[%emt 0:00:31]} O-O {[%emt 0:00:02]} 7. Re1 {[%emt 0:00:12]} c6 {[%emt 0:00:02]} 8. a4 {[%emt 0:00:05]} b6 {[%emt 0:00:06] 8...b6 has become a bit dusty these days.} 9. b3 {[%emt 0:08:56]} Bb7 {[%emt 0:00:26] C41: Philidor Defence.} 10. Bb2 {[%emt 0:01:15]} Qc7 {[%emt 0:00:15]} 11. Bd3 {[%emt 0:00:57]} Rfe8 {[%emt 0:00:12] White has an edge.} 12. Ne2 {[%emt 0:05:11]} Bf8 {[%emt 0:00:44]} 13. Ng3 {[%emt 0:00:07]} Rad8 {[%emt 0:02:52] [#]} 14. c4 $146 {[%emt 0:12:03]} ({Predecessor:} 14. Qd2 g6 15. Rad1 Bg7 16. Qc1 exd4 17. Bxd4 d5 18. Bxf6 dxe4 19. Bxg7 Kxg7 20. Nxe4 {1-0 (34) Ambarcumova,K (2332)-Haverkamp,K (1987) Cappelle la Grande 2011}) 14... exd4 {[%emt 0:00:59]} 15. Nxd4 {[%emt 0:00:15]} a5 {[%emt 0:00:01]} (15... d5 $11 {keeps the balance.}) 16. Rc1 {[%emt 0:06:56]} (16. Ndf5 {is more complex.} d5 17. cxd5 cxd5 18. Nh5) 16... g6 {[%emt 0:00:03]} 17. f4 {[%emt 0:05:25]} (17. Qd2 {feels hotter.} Ng4 18. Be2 Bh6 19. f4) 17... Bh6 {[%emt 0:01:43]} 18. Qf3 {[%emt 0:00:29]} Bg7 {[%emt 0:12:57]} 19. Bb1 {[%emt 0:06:01]} Qb8 {[%emt 0:00:56]} 20. Bc3 {[%emt 0:03:35]} (20. Ngf5 {looks sharper.} Bf8 21. Rcd1 c5 22. Nb5) 20... d5 {[%emt 0:08:41] [#]} 21. cxd5 {[%emt 0:04:04]} cxd5 {[%emt 0:00:06]} 22. e5 {[%emt 0:00:37]} Ne4 {[%emt 0:00:02]} 23. Nxe4 {[%emt 0:02:39]} (23. Ngf5 {keeps more tension.} Bf8 24. Qh3 gxf5 25. Bxe4 dxe4 26. Qg3+) 23... dxe4 {[%emt 0:00:43]} 24. Bxe4 {[%emt 0:00:06]} Bxe4 {[%emt 0:02:33]} 25. Qxe4 {[%emt 0:03:42]} Nc5 {[%emt 0:00:21]} 26. Qf3 {[%emt 0:00:58]} Qa8 {[%emt 0:04:02]} 27. Qxa8 {[%emt 0:10:47]} Rxa8 {[%emt 0:00:01]} 28. Rcd1 {[%emt 0:00:07] Prevents Nd3.} (28. Rb1 $14) 28... Red8 {[%emt 0:00:27]} (28... Rad8 $11) 29. g4 {[%emt 0:04:58]} (29. g3 $14) 29... Rac8 $11 {[%emt 0:00:29]} 30. Ba1 {[%emt 0:00:04]} Rd5 {[%emt 0:01:39]} 31. Kf1 {[%emt 0:01:55]} Rcd8 {[%emt 0:00:18][%cal Oc5b3] Strongly threatening ...Nxb3!} 32. Ke2 {[%emt 0:00:23]} g5 {[%emt 0:07:25]} 33. Nc6 {[%emt 0:02:03]} Rxd1 {[%emt 0:00:09]} 34. Rxd1 {[%emt 0:00:04]} Rxd1 {[%emt 0:00:16]} 35. Kxd1 {[%emt 0:00:03] Bd4 is the strong threat.} Nxb3 {[%emt 0:00:40][%mdl 4096] Endgame KBN-KBN} 36. Bc3 {[%emt 0:00:09] Hoping for f5.} Nc5 {[%emt 0:02:07]} 37. f5 {[%emt 0:01:19]} Nxa4 {[%emt 0:00:01]} 38. Bd4 {[%emt 0:00:04]} (38. Bd2 $11) 38... Bf8 $1 $15 {[%emt 0:01:27]} 39. Kc2 {[%emt 0:05:55]} Bc5 $1 {[%emt 0:00:21]} 40. Ba1 $1 {[%emt 0:00:00]} Bg1 {[%emt 0:00:00]} 41. h3 {[%emt 0:04:16]} ({Not} 41. e6 $2 fxe6 42. fxe6 Nc5 $19) 41... Kf8 {[%emt 0:00:58]} 42. Kb3 {[%emt 0:00:47]} Nc5+ {[%emt 0:00:09]} 43. Kc4 {[%emt 0:00:03]} Ke8 {[%emt 0:00:48]} 44. Kd5 {[%emt 0:00:31] White is now going downhill.} (44. Na7 $15) 44... Nd3 $17 {[%emt 0:00:52]} 45. Kd6 {[%emt 0:11:04]} (45. Ke4 $17 Nf4 46. h4) 45... Bc5+ {[%emt 0:00:37]} 46. Kc7 {[%emt 0:00:09]} a4 {[%emt 0:00:18][%cal Ba5a4,Ba4a3][%mdl 32] White must now prevent ...b5.} 47. Nd8 $2 {[%emt 0:00:39]} (47. Na7) 47... b5 $19 {[%emt 0:05:11] Black is clearly winning.} 48. Nb7 {[%emt 0:01:43]} b4 {[%emt 0:00:38]} 49. Nd6+ {[%emt 0:03:56]} Kf8 {[%emt 0:01:06]} 50. Kd7 {[%emt 0:00:44]} b3 {[%emt 0:00:48]} 51. Nxf7 {[%emt 0:00:30]} a3 {[%emt 0:01:39]} (51... Kxf7 $2 52. e6+ Kg8 53. f6 $18) 52. e6 {[%emt 0:01:41]} Nf4 {[%emt 0:00:48]} (52... b2 $142 53. Bxb2 axb2) 53. Bd4 {[%emt 0:13:37] [#]} Nxe6 $1 {[%emt 0:00:04][%mdl 512]} 54. fxe6 {[%emt 0:00:04]} Be7 {[%emt 0:00:05] And now ...b2 would win.} 55. Bb6 {[%emt 0:02:04]} b2 {[%emt 0:03:11]} 56. Bd8 {[%emt 0:00:02]} Bb4 {[%emt 0:00:30]} ({And not} 56... Bxd8 57. Nxd8 Kg7 58. e7 $11) 57. Nxg5 {[%emt 0:04:44]} b1=Q {[%emt 0:00:15] ( -> ...Qd3+)} 58. e7+ {[%emt 0:00:03] [#]} Bxe7 $1 {[%emt 0:00:06]} 59. Bxe7+ {[%emt 0:00:03]} Kg8 {[%emt 0:00:02] Weighted Error Value: White=0.63/Black=0.21 (precise)} 0-1

[Event "Reykjavik Open 2022"]
[Site "Reykjavik"]
[Date "2022.04.10"]
[Round "6.14"]
[White "Cummings, David H."]
[Black "Stefansson, Vignir Vatnar"]
[Result "1-0"]
[ECO "A85"]
[WhiteElo "2327"]
[BlackElo "2484"]
[Annotator "TA"]
[PlyCount "75"]
[EventDate "2022.04.06"]
[EventCountry "ISL"]
[SourceTitle "playchess.com"]
[Source "ChessBase"]
[SourceQuality "1"]
[TimeControl "40/5400+30:1800+30"]

{[%evp 9,75,40,45,7,6,11,16,0,8,13,15,15,17,2,1,18,23,21,11,0,0,0,0,0,0,-1,69,58,126,120,166,160,174,160,177,177,185,176,179,177,181,127,127,126,151,106,279,275,369,259,352,384,841,469,464,456,467,448,459,480,522,521,643,641,930,922,1155,722]} 1. c4 {[%emt 0:00:06]} f5 {[%emt 0:00:10]} 2. d4 {[%emt 0:00:31]} Nf6 {[%emt 0:00:06]} 3. Nc3 {[%emt 0:00:18]} e6 {[%emt 0:00:58]} 4. Qc2 {[%emt 0:01:25]} Be7 {[%emt 0:01:32]} 5. Nf3 {[%emt 0:03:50]} O-O {[%emt 0:00:14]} 6. Bg5 {[%emt 0:02:14] A85: Dutch Defence: 2 c4 Nf6 3 Nc3.} Ne4 {[%emt 0:06:15]} 7. Bxe7 {[%emt 0:01:23]} Qxe7 {[%emt 0:00:28]} 8. e3 {[%emt 0:00:27] The position is equal.} Nxc3 {[%emt 0:01:22]} 9. Qxc3 {[%emt 0:04:59]} b6 {[%emt 0:00:15]} 10. Be2 {[%emt 0:05:57]} Bb7 {[%emt 0:02:32] [#]} 11. c5 $146 {[%emt 0:04:26]} ({Predecessor:} 11. O-O c5 12. Rfd1 d6 13. dxc5 bxc5 14. b4 Nd7 15. Qd2 cxb4 16. Qxd6 Qxd6 17. Rxd6 Nc5 18. Nd4 Rfd8 19. Rxd8+ Rxd8 20. f3 Kf8 {½-½ (20) Hueser,U (1722)-Schrade,A GER email 2017}) 11... bxc5 {[%emt 0:05:56]} 12. dxc5 {[%emt 0:00:59]} a5 {[%emt 0:02:31]} 13. O-O {[%emt 0:02:54]} Bd5 {[%emt 0:01:54]} 14. Nd2 {[%emt 0:09:34]} Na6 {[%emt 0:04:53]} 15. Qxa5 {[%emt 0:09:12]} Nxc5 {[%emt 0:01:12]} 16. Qxc7 {[%emt 0:01:56]} Rfc8 {[%emt 0:00:17]} 17. Qe5 {[%emt 0:07:20]} d6 {[%emt 0:04:22]} ({But not} 17... Qg5 18. Bf3 $16) ({Better is} 17... Na4 $11 18. Qd4 Qc5) 18. Qd4 $1 $14 {[%emt 0:05:16]} Ra4 {[%emt 0:09:01]} (18... Rxa2 $14 19. Rxa2 Bxa2) 19. b4 $16 {[%emt 0:04:22] [#] aiming for Bd1.} Qb7 {[%emt 0:00:31]} (19... Nd7 $16 {was necessary.}) 20. a3 $18 {[%emt 0:11:18]} Rca8 {[%emt 0:09:26]} 21. Qc3 {[%emt 0:05:33]} Ne4 {[%emt 0:03:55]} 22. Nxe4 {[%emt 0:00:09]} Bxe4 {[%emt 0:00:05]} 23. f3 {[%emt 0:01:11]} Bd5 {[%emt 0:00:54]} 24. Bd1 {[%emt 0:02:09]} R4a6 {[%emt 0:01:20]} 25. Bb3 {[%emt 0:01:32]} (25. a4 $18) 25... Bxb3 $16 {[%emt 0:00:01]} 26. Qxb3 {[%emt 0:00:05]} d5 {[%emt 0:00:06]} 27. a4 {[%emt 0:06:12] And now b5 would win.} Qa7 $2 {[%emt 0:00:13] Black cannot hold the game after this.} (27... f4 $16) 28. b5 $18 {[%emt 0:04:08]} ({Less strong is} 28. a5 f4 $16) 28... Ra5 {[%emt 0:00:24]} (28... Rxa4 $2 29. b6 Rxa1 30. bxa7 $18) 29. f4 {[%emt 0:00:37]} Qb6 {[%emt 0:01:48]} (29... Rxa4 $2 30. b6 Rxa1 31. bxa7 $18) 30. Rfc1 {[%emt 0:01:01][%cal Bf1c1,Bc1c5,Bc5c6,Bc6e6][%mdl 32]} Qb7 {[%emt 0:01:14]} (30... h6 31. Rc6 Qb7) 31. Qb4 {[%emt 0:02:12] [#] b6 is the strong threat. White is clearly winning.} Qb6 {[%emt 0:01:29][%cal Oa5a4]} 32. Kf2 {[%emt 0:00:17]} Rb8 {[%emt 0:00:02]} 33. Rc5 {[%emt 0:01:14] Strongly threatening Rac1.} Qd8 {[%emt 0:01:28]} 34. Qd4 {[%emt 0:00:37]} Rba8 {[%emt 0:00:14]} 35. g3 {[%emt 0:00:24] Against Qh4} h5 {[%emt 0:01:32]} 36. Rc6 {[%emt 0:00:15]} Qd7 {[%emt 0:00:17]} 37. Qe5 {[%emt 0:01:17] Hoping for Rc7.} R8a7 {[%emt 0:02:57] Against Rc7} 38. Rxe6 {[%emt 0:00:46] Weighted Error Value: White=0.23 (precise) /Black=0.29 (precise)} 1-0

[Event "Reykjavik Open 2022"]
[Site "Reykjavik"]
[Date "2022.04.10"]
[Round "6.15"]
[White "Lim, Zhuo Ren"]
[Black "Laurent-Paoli, Pierre"]
[Result "0-1"]
[ECO "E07"]
[WhiteElo "2317"]
[BlackElo "2483"]
[Annotator "TA"]
[PlyCount "70"]
[EventDate "2022.04.06"]
[EventCountry "ISL"]
[SourceTitle "playchess.com"]
[Source "ChessBase"]
[SourceQuality "1"]
[TimeControl "40/5400+30:1800+30"]

{[%evp 18,70,18,4,12,11,0,0,0,0,0,0,0,-63,-12,-17,-20,-139,-145,-134,-108,-119,-118,-191,-187,-217,-214,-265,-265,-305,-306,-315,-250,-282,-270,-283,-273,-369,-333,-361,-374,-347,-351,-453,-452,-451,-444,-427,-400,-400,-400,-394,-385,-1406,-1406]} 1. Nf3 {[%emt 0:00:05]} Nf6 {[%emt 0:02:07]} 2. c4 {[%emt 0:00:20]} e6 {[%emt 0:00:21]} 3. g3 {[%emt 0:00:26]} d5 {[%emt 0:00:24]} 4. d4 {[%emt 0:00:30]} Be7 {[%emt 0:01:23]} 5. Bg2 {[%emt 0:00:24]} O-O {[%emt 0:00:21]} 6. Nc3 {[%emt 0:01:50]} c6 {[%emt 0:01:35]} 7. O-O {[%emt 0:00:13]} Nbd7 {[%emt 0:00:02]} 8. Qd3 {[%emt 0:02:19]} b6 {[%emt 0:00:29]} 9. e4 {[%emt 0:00:16]} Ba6 {[%emt 0:00:12]} 10. b3 {[%emt 0:00:14]} dxc4 {[%emt 0:00:16] E07: Closed Catalan: Main Line (5 Nf3 0-0 6 0-0 Nbd7).} 11. bxc4 {[%emt 0:00:08]} e5 {[%emt 0:00:03]} 12. dxe5 {[%emt 0:06:13]} Ng4 {[%emt 0:01:18] The position is equal.} 13. Bf4 {[%emt 0:01:56] And now Rad1 would win.} g5 {[%emt 0:00:03]} 14. Rad1 {[%emt 0:16:26]} gxf4 {[%emt 0:06:10] [#]} 15. gxf4 $146 {[%emt 0:03:14] [#]} (15. Qxd7 $11 Qxd7 16. Rxd7) ({Predecessor:} 15. Qxd7 Qxd7 16. Rxd7 Bb4 17. Bh3 h5 18. Ne2 Bxc4 19. Nxf4 Bxf1 20. Kxf1 Rfd8 21. Rc7 {1-0 (44) Banusz,T (2619)-Gordievsky,D (2579) chess24.com INT 2019}) 15... Ndxe5 $1 {[%emt 0:08:53]} 16. Nxe5 $11 {[%emt 0:01:30]} Qxd3 {[%emt 0:00:43]} 17. Rxd3 {[%emt 0:02:48]} (17. Nxd3 $11 {was the only way to keep the balance.} Bxc4 18. Rd2) 17... Nxe5 $17 {[%emt 0:00:32][%mdl 64] Remove Defender} 18. fxe5 {[%emt 0:00:04]} Bxc4 {[%emt 0:01:19]} 19. Rg3+ {[%emt 0:00:45]} Kh8 {[%emt 0:00:04]} 20. Re1 {[%emt 0:03:56]} (20. Rc1 $17 {was worth a try.}) 20... Rad8 $19 {[%emt 0:03:02]} 21. Bf1 {[%emt 0:00:47] [#]} Be6 {[%emt 0:00:26] This bishop pair is nice.} 22. Ba6 {[%emt 0:19:39]} Bh4 {[%emt 0:07:41]} 23. Rf3 {[%emt 0:02:48]} Rd2 {[%emt 0:08:14]} 24. Re2 {[%emt 0:02:44]} Rd7 {[%emt 0:05:03]} 25. h3 {[%emt 0:01:18]} b5 {[%emt 0:02:53] Hoping for ...b4.} 26. Rb2 {[%emt 0:00:47]} Rfd8 {[%emt 0:09:13]} 27. Rc2 {[%emt 0:07:16]} Rd2 {[%emt 0:01:52]} 28. Rxd2 {[%emt 0:01:13]} Rxd2 {[%emt 0:00:05]} 29. a3 {[%emt 0:00:27] [#]} Rc2 $1 {[%emt 0:02:07][%cal Oh4f2]} 30. Bxb5 {[%emt 0:04:04]} cxb5 {[%emt 0:00:33]} 31. Nxb5 {[%emt 0:00:03]} Rc5 {[%emt 0:05:32][%csl LRb5,LRe5]} 32. Nd6 {[%emt 0:08:14]} Rxe5 {[%emt 0:02:24]} 33. Nxf7+ {[%emt 0:03:43]} Bxf7 {[%emt 0:00:06]} 34. Rxf7 {[%emt 0:00:02]} Be7 {[%emt 0:00:25]} 35. f3 $2 {[%emt 0:01:26]} (35. Kf1) 35... Kg8 {[%emt 0:00:38] Weighted Error Value: White=0.70/Black=0.08 (flawless)} 0-1

[Event "Reykjavik Open 2022"]
[Site "Reykjavik"]
[Date "2022.04.10"]
[Round "6.16"]
[White "Bjornsson, Sigurbjorn"]
[Black "Clarke, Brandon G I"]
[Result "0-1"]
[ECO "B90"]
[WhiteElo "2315"]
[BlackElo "2430"]
[Annotator "NA RC"]
[PlyCount "73"]
[EventDate "2022.04.06"]
[EventCountry "ISL"]
[SourceTitle "playchess.com"]
[Source "ChessBase"]
[SourceQuality "1"]
[TimeControl "40/5400+30:1800+30"]

1. e4 {[%emt 0:00:01]} c5 {[%emt 0:00:17]} 2. Nf3 {[%emt 0:00:08]} d6 {[%emt 0:00:07]} 3. d4 {[%emt 0:00:09]} cxd4 {[%emt 0:00:08]} 4. Nxd4 {[%emt 0:00:03]} Nf6 {[%emt 0:00:08]} 5. Nc3 {[%emt 0:00:14]} a6 {[%emt 0:00:17]} 6. Be3 {[%emt 0:00:06]} e5 {[%emt 0:00:16]} 7. Nb3 {[%emt 0:00:06]} Be6 {[%emt 0:00:06]} 8. f3 {[%emt 0:00:19]} Be7 {[%emt 0:00:10]} 9. Qd2 {[%emt 0:00:18]} h5 {[%emt 0:01:00]} 10. O-O-O {[%emt 0:00:13]} Nbd7 {[%emt 0:00:15]} 11. Kb1 {[%emt 0:00:24]} Rc8 {[%emt 0:00:30]} 12. h3 {[%emt 0:00:27]} b5 {[%emt 0:00:22]} 13. Bd3 {[%emt 0:00:53]} h4 {[%emt 0:00:11]} 14. f4 {[%emt 0:01:01]} Qc7 {[%emt 0:00:15]} 15. Rhe1 {[%emt 0:01:24]} O-O {[%emt 0:00:17]} 16. Qf2 {[%emt 0:07:46]} b4 {[%emt 0:16:29]} 17. Nd5 {[%emt 0:09:32]} Bxd5 {[%emt 0:05:49]} 18. exd5 {[%emt 0:00:14]} Nxd5 {[%emt 0:01:06]} 19. Bf5 {[%emt 0:19:57]} Nxe3 {[%emt 0:01:01]} 20. Rxe3 {[%emt 0:06:44]} Rcd8 {[%emt 0:02:37]} 21. g3 {[%emt 0:02:44]} Nf6 {[%emt 0:08:22]} 22. gxh4 {[%emt 0:05:21]} Nh5 {[%emt 0:07:07]} 23. fxe5 {[%emt 0:18:20]} dxe5 {[%emt 0:00:02]} 24. Rg1 {[%emt 0:00:16]} Qb6 {[%emt 0:13:13]} 25. Be4 {[%emt 0:02:49]} f5 {[%emt 0:04:14]} 26. Bd3 {[%emt 0:02:08]} e4 {[%emt 0:12:19]} 27. Bc4+ {[%emt 0:02:13]} Kh8 {[%emt 0:03:40]} 28. Qe1 {[%emt 0:08:38]} g6 {[%emt 0:02:19]} 29. Qc1 {[%emt 0:01:24]} Kh7 {[%emt 0:00:55]} 30. Be2 {[%emt 0:08:17]} Nf4 {[%emt 0:00:18]} 31. h5 {[%emt 0:02:18]} g5 {[%emt 0:00:11]} 32. h4 {[%emt 0:00:34]} Nxe2 {[%emt 0:00:30]} 33. Rxe2 {[%emt 0:00:16]} g4 {[%emt 0:00:05]} 34. Rf1 {[%emt 0:00:48]} Bxh4 {[%emt 0:00:44]} 35. Qf4 {[%emt 0:00:36]} Qb5 {[%emt 0:05:08]} 36. Rd2 {[%emt 0:01:15]} Bg3 {[%emt 0:07:23]} 37. Qg5 {[%emt 0:00:43]} 0-1